[Event "41st Arco Open 2019"]
[Site "Arco"]
[Date "2019.10.05"]
[Round "1"]
[White "Di Lazzaro, Gabriele"]
[Black "Curien, Nicolas"]
[Result "0-1"]
[ECO "D00"]
[WhiteElo "1861"]
[BlackElo "2266"]
[Annotator "ChessBase"]
[PlyCount "84"]
[EventDate "2019.10.04"]
[EventType "swiss"]
[EventCountry "ITA"]
[SourceTitle "playchess.com"]
[Source "ChessBase"]
[SourceQuality "1"]
[TimeControl "40/5400+30:1800+30"]

1. d4 {[%clk} d5 {[%clk} 2. Bf4 {[%clk} Nf6 {[%clk} 3. e3 {[%clk} e6 {[%clk} 4. c3 {[%clk} c5 5. Bd3 {[%clk} Nc6 {[%clk} 6. Nd2 Bd6 {[%clk} 7. Bg3 {[%clk} e5 {[%clk} 8. dxe5 Nxe5 {[%clk} 9. Bc2 {[%clk} O-O {[%clk} 10. h3 {[%clk} Re8 {[%clk} 11. Bxe5 {[%emt 0:43:30]} Bxe5 12. Ngf3 {[%emt 0:01:30]} Bc7 {[%clk} 13. O-O {[%clk} b6 {[%clk} 14. Re1 {[%emt 0:06:00]} Bb7 {[%clk} 15. Nf1 {[%emt 0:01:30]} Ne4 {[%clk} 16. N3d2 {[%emt 0:01:30]} f5 17. Nxe4 {[%emt 0:02:30]} fxe4 {[%emt 0:42:30]} 18. Qg4 {[%emt 0:13:30]} Qf6 19. Rad1 {[%emt 0:06:30]} Rad8 {[%emt 0:04:00]} 20. Bb3 {[%emt 0:00:00]} Kh8 {[%emt 0:02:30]} 21. Rd2 {[%emt 0:04:31]} Re5 {[%emt 0:02:30]} 22. Red1 {[%emt 0:00:30]} Rg5 {[%emt 0:03:30]} 23. Qe2 {[%emt 0:10:43]} Qe6 24. f4 {[%emt 0:03:10]} exf3 {[%emt 0:17:00]} 25. Qxf3 {[%emt 0:00:00]} Rf5 {[%emt 0:06:30]} 26. Qe2 {[%emt 0:02:27]} Qe5 {[%emt 0:05:07]} 27. e4 {[%emt 0:02:10]} Rxf1+ {[%emt 0:02:02]} 28. Rxf1 {[%emt 0:00:19]} Qh2+ {[%emt 0:11:55]} 29. Kf2 {[%emt 0:00:08]} Bf4 {[%emt 0:00:00]} 30. Rdd1 {[%emt 0:00:30]} Qg3+ {[%emt 0:00:00]} 31. Kg1 {[%emt 0:00:19]} d4 {[%emt 0:00:34]} 32. Qf3 {[%emt 0:01:32]} Qh2+ {[%emt 0:01:26]} 33. Kf2 {[%emt 0:00:05]} Ba6 {[%emt 0:02:51]} 34. c4 {[%emt 0:00:25]} h6 {[%emt 0:01:05]} 35. Rh1 {[%emt 0:00:41]} Be3+ {[%emt 0:01:02]} 36. Ke2 {[%emt 0:00:48]} Qe5 {[%emt 0:00:00]} 37. Kd3 {[%emt 0:01:10]} Bb7 {[%clk} 38. Qf5 {[%emt 0:00:43]} Qe7 {[%emt 0:01:50]} 39. Bc2 {[%emt 0:00:26]} Rf8 {[%emt 0:00:45]} 40. Qg6 {[%emt 0:02:04]} Rf6 41. Qg4 {[%emt 0:06:19]} Rf4 {[%emt 0:01:23]} 42. Qxf4 {[%emt 0:06:26]} Bxf4 {[%emt 0:01:30]} 0-1

[Event "41st Arco Open 2019"]
[Site "Arco"]
[Date "2019.10.05"]
[Round "1"]
[White "Farkas, Otto Jr."]
[Black "Scheftlein, Richard"]
[Result "0-1"]
[ECO "B14"]
[WhiteElo "1826"]
[BlackElo "2236"]
[Annotator "ChessBase"]
[PlyCount "64"]
[EventDate "2019.10.04"]
[EventType "swiss"]
[EventCountry "ITA"]
[SourceTitle "playchess.com"]
[Source "ChessBase"]
[SourceQuality "1"]
[TimeControl "40/5400+30:1800+30"]

1. e4 {[%clk} c6 {[%clk} 2. d4 {[%clk} d5 {[%clk} 3. exd5 {[%clk} cxd5 {[%clk} 4. c4 {[%clk} Nf6 {[%clk} 5. Nc3 {[%clk} e6 {[%clk} 6. Nf3 Bb4 {[%clk} 7. Bd2 {[%clk} O-O {[%clk} 8. a3 {[%clk} Bxc3 {[%clk} 9. Bxc3 {[%clk} dxc4 {[%clk} 10. Bxc4 {[%clk} Nd5 {[%clk} 11. O-O {[%clk} b6 {[%clk} 12. Bxd5 {[%clk} Qxd5 {[%clk} 13. Re1 {[%clk} Nd7 {[%clk} 14. Ne5 {[%clk} Bb7 {[%clk} 15. f3 {[%clk} Nf6 {[%clk} 16. Rc1 {[%clk} Rfd8 {[%clk} 17. Qe2 {[%clk} Rac8 {[%clk} 18. Nd3 {[%emt 0:46:00]} Ba6 {[%emt 0:49:00]} 19. Qe3 {[%emt 0:03:30]} Bxd3 {[%clk} 20. Qxd3 {[%emt 0:00:30]} Rc7 {[%clk} 21. Qe3 {[%emt 0:07:30]} Rdc8 {[%clk} 22. Bd2 Qb5 {[%clk} 23. Rxc7 {[%emt 0:20:00]} Rxc7 24. Rc1 {[%emt 0:00:30]} Rxc1+ {[%clk} 25. Bxc1 {[%emt 0:00:00]} Nd5 {[%clk} 26. Qe5 {[%emt 0:01:00]} h6 {[%clk} 27. Kf2 Qc4 {[%clk} 28. Bf4 {[%emt 0:04:00]} a5 {[%clk} 29. Kg3 Qc2 {[%clk} 30. b4 {[%emt 0:05:49]} a4 {[%clk} 31. Qb8+ {[%emt 0:01:39]} Kh7 {[%clk} 32. Qa7 {[%emt 0:01:04]} Qg6+ {[%clk} 0-1

[Event "41st Arco Open 2019"]
[Site "Arco"]
[Date "2019.10.05"]
[Round "1"]
[White "Gregoric, Andraz"]
[Black "Welling, Gerard"]
[Result "0-1"]
[ECO "B06"]
[WhiteElo "1825"]
[BlackElo "2301"]
[Annotator "ChessBase"]
[PlyCount "112"]
[EventDate "2019.10.04"]
[EventType "swiss"]
[EventCountry "ITA"]
[SourceTitle "playchess.com"]
[Source "ChessBase"]
[SourceQuality "1"]
[TimeControl "40/5400+30:1800+30"]

1. e4 {[%clk} g6 {[%clk} 2. d4 {[%clk} Bg7 {[%clk} 3. Nc3 {[%clk} d6 {[%clk} 4. Be3 {[%clk} a6 5. a4 {[%clk} b6 {[%clk} 6. Bc4 {[%clk} e6 {[%clk} 7. Nge2 {[%clk} Ne7 {[%clk} 8. f3 {[%clk} Nd7 {[%clk} 9. Qd2 {[%clk} h6 {[%clk} 10. Bb3 {[%clk} Bb7 {[%clk} 11. Nd1 {[%clk} c5 {[%clk} 12. c3 {[%clk} d5 {[%clk} 13. Nf2 {[%clk} cxd4 {[%emt 0:41:30]} 14. cxd4 {[%emt 0:42:00]} dxe4 {[%clk} 15. fxe4 {[%emt 0:02:30]} Nf6 {[%clk} 16. Ng3 {[%emt 0:00:30]} h5 {[%clk} 17. h4 {[%clk} Nc6 {[%clk} 18. e5 {[%emt 0:16:00]} Ng4 {[%clk} 19. Nxg4 {[%emt 0:00:30]} hxg4 {[%clk} 20. h5 {[%emt 0:07:30]} Bf8 21. O-O {[%emt 0:08:30]} Qh4 {[%emt 0:04:00]} 22. Bf2 {[%emt 0:05:32]} O-O-O {[%emt 0:01:30]} 23. Qf4 {[%emt 0:01:40]} Kb8 {[%emt 0:05:30]} 24. Rad1 Bh6 {[%emt 0:06:30]} 25. Qxf7 {[%emt 0:09:53]} Rdf8 {[%emt 0:37:59]} 26. Qxe6 {[%emt 0:02:54]} Rxf2 {[%emt 0:00:00]} 27. Qd6+ {[%emt 0:00:00]} Ka7 {[%emt 0:00:00]} 28. Kxf2 {[%emt 0:03:28]} Be3+ 29. Kxe3 {[%emt 0:00:35]} Qxg3+ {[%emt 0:00:00]} 30. Ke2 {[%emt 0:00:44]} Qxb3 {[%emt 0:00:00]} 31. d5 {[%emt 0:01:06]} Qc2+ {[%emt 0:00:00]} 32. Ke3 Na5 {[%emt 0:00:00]} 33. Qxg6 {[%emt 0:01:57]} Qxb2 {[%emt 0:08:34]} 34. Rd4 {[%emt 0:00:44]} Rc8 {[%emt 0:00:00]} 35. Rb1 {[%emt 0:00:00]} Rc3+ {[%emt 0:00:00]} 36. Rd3 {[%emt 0:00:59]} Nc4+ 37. Kf4 {[%emt 0:00:30]} Qf2+ {[%emt 0:00:00]} 38. Kg5 {[%emt 0:00:11]} Rxd3 {[%emt 0:00:00]} 39. Qxd3 {[%emt 0:00:13]} Nxe5 {[%emt 0:00:00]} 40. Qf5 {[%emt 0:01:30]} Qe3+ {[%emt 0:00:00]} 41. Kf6 {[%emt 0:30:31]} Nc4 42. Rd1 {[%emt 0:00:28]} Qc3+ {[%emt 0:14:27]} 43. Kg6 {[%emt 0:00:00]} Nd6 {[%emt 0:01:43]} 44. Qf2 {[%emt 0:01:02]} Bc8 {[%emt 0:19:42]} 45. Rf1 {[%emt 0:00:28]} Bf5+ {[%emt 0:00:00]} 46. Qxf5 {[%emt 0:00:00]} Nxf5 {[%emt 0:00:00]} 47. Rxf5 {[%emt 0:00:22]} b5 {[%emt 0:01:31]} 48. a5 {[%emt 0:01:09]} b4 {[%emt 0:00:00]} 49. h6 {[%emt 0:00:00]} b3 {[%emt 0:00:00]} 50. h7 {[%emt 0:00:33]} b2 {[%emt 0:00:00]} 51. Rf7+ {[%emt 0:00:03]} Kb8 {[%emt 0:00:00]} 52. Rf8+ {[%emt 0:00:56]} Kc7 {[%emt 0:00:00]} 53. d6+ {[%emt 0:00:38]} Kxd6 {[%emt 0:00:00]} 54. Rf6+ {[%emt 0:00:30]} Ke7 {[%emt 0:00:00]} 55. h8=Q {[%emt 0:00:49]} b1=Q+ {[%emt 0:00:00]} 56. Kg5 {[%emt 0:00:16]} Qe5+ {[%emt 0:00:00]} 0-1

[Event "41st Arco Open 2019"]
[Site "Arco"]
[Date "2019.10.06"]
[Round "3"]
[White "Halkias, Stelios"]
[Black "De Santis, Alessio"]
[Result "1-0"]
[ECO "A17"]
[WhiteElo "2530"]
[BlackElo "2178"]
[Annotator "ChessBase"]
[PlyCount "84"]
[EventDate "2019.10.04"]
[EventType "swiss"]
[EventCountry "ITA"]
[SourceTitle "playchess.com"]
[Source "ChessBase"]
[SourceQuality "1"]
[TimeControl "40/5400+30:1800+30"]

1. Nf3 {[%emt 0:00:30]} Nf6 {[%emt 0:04:30]} 2. c4 {[%emt 0:00:00]} e6 {[%emt 0:00:00]} 3. g3 {[%emt 0:03:00]} b6 {[%emt 0:01:00]} 4. Bg2 {[%emt 0:00:00]} Bb7 5. O-O {[%emt 0:00:00]} Be7 {[%emt 0:01:00]} 6. Nc3 O-O {[%emt 0:00:30]} 7. Re1 {[%emt 0:02:00]} d6 {[%emt 0:11:30]} 8. e4 {[%emt 0:20:30]} c5 {[%emt 0:07:30]} 9. d4 {[%emt 0:00:00]} a6 {[%emt 0:00:30]} 10. d5 e5 {[%emt 0:13:30]} 11. Nh4 {[%emt 0:00:00]} Nbd7 {[%emt 0:09:30]} 12. Nf5 {[%emt 0:00:00]} g6 {[%emt 0:05:30]} 13. Nxe7+ {[%emt 0:02:30]} Qxe7 14. Bg5 {[%emt 0:01:30]} Kg7 {[%emt 0:07:00]} 15. Qd2 {[%emt 0:33:30]} Rfb8 {[%emt 0:01:30]} 16. a4 {[%emt 0:00:00]} Qe8 {[%emt 0:00:30]} 17. Rf1 {[%emt 0:00:00]} Bc8 {[%emt 0:02:30]} 18. f4 {[%emt 0:00:00]} Ng8 {[%emt 0:02:30]} 19. f5 {[%emt 0:00:00]} f6 {[%emt 0:04:30]} 20. Be3 {[%emt 0:00:00]} Nf8 {[%emt 0:00:00]} 21. h4 {[%emt 0:02:00]} Bd7 {[%emt 0:01:00]} 22. g4 {[%emt 0:05:30]} b5 23. g5 {[%emt 0:01:30]} fxg5 {[%emt 0:09:04]} 24. hxg5 {[%emt 0:11:22]} bxc4 {[%emt 0:00:18]} 25. Rf2 {[%emt 0:01:23]} Ra7 {[%emt 0:03:36]} 26. Qe2 {[%emt 0:02:43]} Rb4 {[%emt 0:06:51]} 27. Raf1 {[%emt 0:07:32]} Bxa4 {[%emt 0:01:11]} 28. Bh3 {[%emt 0:00:00]} Rab7 {[%emt 0:04:27]} 29. fxg6 {[%emt 0:04:57]} Nxg6 {[%emt 0:02:08]} 30. Be6 {[%emt 0:02:22]} Rxb2 {[%emt 0:00:44]} 31. Qxb2 {[%emt 0:00:00]} Rxb2 {[%emt 0:00:30]} 32. Rxb2 {[%emt 0:00:00]} Nf4 {[%emt 0:01:11]} 33. Bxf4 {[%emt 0:02:11]} exf4 {[%emt 0:00:30]} 34. Rxf4 {[%emt 0:00:00]} Bb3 {[%emt 0:00:05]} 35. Rbf2 {[%emt 0:00:35]} Qh5 {[%emt 0:01:47]} 36. Rh2 {[%emt 0:01:44]} Qg6 {[%emt 0:00:27]} 37. Bf5 {[%emt 0:00:00]} Qxg5+ {[%emt 0:00:00]} 38. Rg4 {[%emt 0:00:00]} Qxg4+ {[%emt 0:00:11]} 39. Bxg4 Nf6 {[%emt 0:00:00]} 40. Bf5 {[%emt 0:01:03]} a5 {[%emt 0:00:41]} 41. e5 {[%emt 0:30:19]} dxe5 {[%emt 0:29:37]} 42. d6 {[%emt 0:00:00]} a4 {[%emt 0:00:04]} 1-0

[Event "41st Arco Open 2019"]
[Site "Arco"]
[Date "2019.10.06"]
[Round "3"]
[White "Sarkar, Justin"]
[Black "Shehzad, Shazil"]
[Result "1-0"]
[ECO "B35"]
[WhiteElo "2350"]
[BlackElo "2140"]
[Annotator "ChessBase"]
[PlyCount "89"]
[EventDate "2019.10.04"]
[EventType "swiss"]
[EventCountry "ITA"]
[SourceTitle "playchess.com"]
[Source "ChessBase"]
[SourceQuality "1"]
[TimeControl "40/5400+30:1800+30"]

1. e4 {[%emt 0:00:30]} c5 {[%emt 0:00:30]} 2. Nf3 {[%emt 0:00:00]} d6 {[%emt 0:00:00]} 3. d4 {[%emt 0:00:00]} cxd4 {[%emt 0:00:00]} 4. Nxd4 {[%emt 0:00:30]} Nf6 {[%emt 0:00:00]} 5. Nc3 {[%emt 0:01:30]} a6 {[%emt 0:00:00]} 6. Nb3 g6 {[%emt 0:00:30]} 7. Be2 {[%emt 0:01:00]} Bg7 {[%emt 0:02:30]} 8. Be3 {[%emt 0:00:30]} O-O {[%emt 0:00:30]} 9. O-O {[%emt 0:18:30]} Nc6 {[%emt 0:02:30]} 10. f4 {[%emt 0:00:30]} Qc7 {[%emt 0:01:30]} 11. Bf3 {[%emt 0:03:30]} Na5 12. Nxa5 {[%emt 0:27:30]} Qxa5 {[%emt 0:05:00]} 13. Qd2 {[%emt 0:00:30]} Re8 14. Rae1 {[%emt 0:11:30]} Ng4 {[%emt 0:17:00]} 15. Bxg4 {[%emt 0:00:00]} Bxg4 {[%emt 0:05:30]} 16. f5 {[%emt 0:02:00]} gxf5 {[%emt 0:00:30]} 17. Bh6 {[%emt 0:00:30]} fxe4 {[%emt 0:07:30]} 18. Bxg7 {[%emt 0:09:30]} Kxg7 {[%emt 0:35:30]} 19. Rxe4 {[%emt 0:01:30]} Bh5 {[%emt 0:00:00]} 20. Qd4+ {[%emt 0:01:04]} Kg8 {[%emt 0:19:36]} 21. Nd5 {[%emt 0:04:53]} Qc5 {[%emt 0:00:00]} 22. Qxc5 {[%emt 0:00:16]} dxc5 {[%emt 0:00:00]} 23. Nc7 {[%emt 0:00:16]} Rac8 24. Nxe8 {[%emt 0:00:12]} Rxe8 {[%emt 0:00:00]} 25. Re5 {[%emt 0:00:00]} Bg6 {[%emt 0:00:00]} 26. Rxc5 {[%emt 0:00:45]} Rd8 {[%emt 0:00:00]} 27. h4 {[%emt 0:00:49]} h5 {[%emt 0:00:00]} 28. Rc7 {[%emt 0:00:33]} e5 29. Rxb7 {[%emt 0:00:31]} Rd2 {[%emt 0:00:00]} 30. c4 {[%emt 0:00:00]} Rc2 {[%emt 0:00:00]} 31. Re1 {[%emt 0:13:58]} e4 {[%emt 0:00:00]} 32. Rb6 {[%emt 0:00:38]} a5 {[%emt 0:00:00]} 33. Rb5 {[%emt 0:00:26]} f5 34. Rxa5 {[%emt 0:02:25]} Rxb2 {[%emt 0:00:00]} 35. Ra7 {[%emt 0:00:00]} f4 {[%emt 0:00:00]} 36. Rd1 {[%emt 0:00:37]} Rb8 {[%emt 0:00:00]} 37. Rdd7 {[%emt 0:00:04]} e3 {[%emt 0:00:00]} 38. Rg7+ {[%emt 0:01:09]} Kf8 {[%emt 0:00:00]} 39. Rxg6 {[%emt 0:00:16]} Rb1+ {[%emt 0:00:00]} 40. Kh2 e2 {[%emt 0:00:00]} 41. Rf6+ {[%emt 0:30:18]} Kg8 {[%emt 0:40:30]} 42. Re7 {[%emt 0:00:56]} e1=Q {[%emt 0:00:00]} 43. Rxe1 {[%emt 0:00:00]} Rxe1 {[%emt 0:00:00]} 44. Rxf4 {[%emt 0:00:06]} Ra1 45. Rf5 {[%emt 0:00:07]} 1-0

[Event "41st Arco Open 2019"]
[Site "Arco"]
[Date "2019.10.06"]
[Round "3"]
[White "Molnar, Bela"]
[Black "Bellmann, Rambald"]
[Result "1-0"]
[ECO "B30"]
[WhiteElo "2305"]
[BlackElo "2089"]
[Annotator "ChessBase"]
[PlyCount "69"]
[EventDate "2019.10.04"]
[EventType "swiss"]
[EventCountry "ITA"]
[SourceTitle "playchess.com"]
[Source "ChessBase"]
[SourceQuality "1"]
[TimeControl "40/5400+30:1800+30"]

1. e4 {[%emt 0:00:30]} c5 {[%emt 0:00:30]} 2. Nf3 {[%emt 0:00:00]} Nc6 {[%emt 0:00:00]} 3. Nc3 {[%emt 0:00:00]} Nf6 {[%emt 0:01:00]} 4. Bb5 {[%emt 0:00:30]} g6 5. e5 {[%emt 0:07:30]} Ng4 {[%emt 0:10:00]} 6. Bxc6 dxc6 {[%emt 0:00:30]} 7. h3 {[%emt 0:01:00]} Nh6 {[%emt 0:00:00]} 8. g4 {[%emt 0:06:30]} Bg7 {[%emt 0:04:00]} 9. d3 {[%emt 0:00:00]} Be6 {[%emt 0:08:30]} 10. Qe2 {[%emt 0:00:00]} Bd5 {[%emt 0:14:30]} 11. Ne4 {[%emt 0:00:30]} Bxe4 12. dxe4 {[%emt 0:00:30]} Qd7 {[%emt 0:05:00]} 13. Bf4 {[%emt 0:08:30]} f6 14. Rd1 {[%emt 0:13:30]} Qe6 {[%emt 0:18:00]} 15. exf6 {[%emt 0:24:30]} exf6 {[%emt 0:01:30]} 16. Rd6 {[%emt 0:00:00]} Qxa2 {[%emt 0:00:00]} 17. e5 {[%emt 0:00:00]} O-O {[%emt 0:03:00]} 18. e6 {[%emt 0:00:00]} g5 19. Bc1 {[%emt 0:00:00]} Rfd8 {[%emt 0:07:00]} 20. Rxd8+ {[%emt 0:00:00]} Rxd8 {[%emt 0:00:30]} 21. O-O {[%emt 0:00:00]} Qd5 {[%emt 0:05:30]} 22. Re1 {[%emt 0:17:30]} Re8 {[%emt 0:01:30]} 23. c4 {[%emt 0:00:00]} Qd6 {[%emt 0:00:30]} 24. Qe4 {[%emt 0:00:00]} Kh8 {[%emt 0:03:27]} 25. h4 {[%emt 0:00:00]} gxh4 {[%emt 0:00:00]} 26. Bf4 {[%emt 0:00:00]} Qd8 {[%emt 0:08:00]} 27. Bxh6 {[%emt 0:11:59]} Bxh6 {[%emt 0:00:02]} 28. Nxh4 {[%emt 0:00:00]} Qd4 {[%emt 0:00:32]} 29. Nf5 {[%emt 0:00:00]} Qd2 {[%emt 0:02:22]} 30. e7 {[%emt 0:00:00]} Bf4 31. Qe6 {[%emt 0:00:00]} Bh2+ {[%emt 0:06:36]} 32. Kg2 Qg5 {[%emt 0:00:12]} 33. Kxh2 {[%emt 0:00:00]} h5 {[%emt 0:00:00]} 34. Re4 {[%emt 0:00:00]} hxg4 {[%emt 0:00:36]} 35. Kg2 {[%emt 0:00:00]} 1-0

[Event "41st Arco Open 2019"]
[Site "Arco"]
[Date "2019.10.06"]
[Round "3"]
[White "Sedina, Elena"]
[Black "De Vita, Gianni"]
[Result "1-0"]
[ECO "B50"]
[WhiteElo "2294"]
[BlackElo "2011"]
[Annotator "NA"]
[PlyCount "83"]
[EventDate "2019.10.04"]
[EventType "swiss"]
[EventCountry "ITA"]
[SourceTitle "playchess.com"]
[Source "ChessBase"]
[SourceQuality "1"]
[TimeControl "40/5400+30:1800+30"]

1. e4 {[%emt 0:00:30]} c5 {[%emt 0:00:30]} 2. Nf3 {[%emt 0:00:00]} d6 {[%emt 0:00:30]} 3. c3 {[%emt 0:01:00]} Nf6 {[%emt 0:02:30]} 4. Be2 {[%emt 0:00:30]} Nbd7 {[%emt 0:02:30]} 5. d3 {[%emt 0:01:30]} g6 {[%emt 0:03:30]} 6. O-O Bg7 {[%emt 1:22:01]} 7. Nbd2 {[%emt 0:10:00]} Nh5 {[%emt 0:00:00]} 8. Re1 Nf4 {[%emt 0:00:00]} 9. Bf1 $14 {[%emt 0:08:00]} Nf6 {[%emt 0:00:00]} 10. d4 {[%emt 0:04:30]} N6h5 {[%emt 0:00:00]} 11. dxc5 {[%emt 0:29:30]} O-O 12. cxd6 {[%emt 0:15:30]} Qxd6 {[%emt 0:00:00]} 13. e5 {[%emt 0:00:00]} Qc7 {[%emt 0:00:00]} 14. h3 {[%emt 0:02:00]} Ne6 {[%emt 0:00:00]} 15. g3 {[%emt 0:08:04]} Rd8 {[%emt 0:00:00]} 16. Qe2 {[%emt 0:00:14]} Nc5 {[%emt 0:00:00]} 17. Nd4 {[%emt 0:00:17]} Ne6 {[%emt 0:00:00]} 18. N2f3 {[%emt 0:00:00]} Bf8 {[%emt 0:00:00]} 19. Bg2 {[%emt 0:09:44]} a6 {[%emt 0:00:00]} 20. Be3 {[%emt 0:01:47]} Bd7 {[%emt 0:00:00]} 21. a4 {[%emt 0:00:29]} Rdc8 {[%emt 0:00:00]} 22. a5 {[%emt 0:00:39]} Nhg7 {[%emt 0:00:00]} 23. Nxe6 {[%emt 0:00:30]} Nxe6 {[%emt 0:01:25]} 24. Bb6 {[%emt 0:01:12]} Qb8 {[%emt 0:02:11]} 25. c4 {[%emt 0:02:34]} Bc6 {[%emt 0:03:12]} 26. b4 Be8 {[%emt 0:01:31]} 27. h4 {[%emt 0:00:54]} h5 {[%emt 0:00:00]} 28. Bh3 {[%emt 0:00:37]} Bd7 {[%emt 0:00:00]} 29. Ng5 {[%emt 0:03:22]} Rc6 {[%emt 0:03:33]} 30. Rad1 {[%emt 0:00:00]} Qc8 {[%emt 0:00:00]} 31. Qd3 {[%emt 0:00:00]} Be8 {[%emt 0:00:00]} 32. Nxe6 {[%emt 0:01:49]} fxe6 {[%emt 0:01:49]} 33. c5 {[%emt 0:00:00]} Bg7 {[%emt 0:00:00]} 34. Bg2 {[%emt 0:00:19]} Bf7 {[%emt 0:00:56]} 35. Qd7 {[%emt 0:01:08]} Be8 {[%emt 0:00:00]} 36. Qxc8 {[%emt 0:00:04]} Raxc8 {[%emt 0:00:49]} 37. f4 {[%emt 0:00:44]} Kf7 {[%emt 0:00:16]} 38. Kf2 {[%emt 0:00:30]} Bh6 {[%emt 0:00:44]} 39. Rd4 {[%emt 0:00:37]} Rb8 {[%emt 0:00:34]} 40. Bxc6 {[%emt 0:00:27]} Bxc6 {[%emt 0:00:00]} 41. Red1 Rg8 {[%emt 0:31:27]} 42. Rd8 {[%emt 0:01:59]} 1-0

[Event "41st Arco Open 2019"]
[Site "Arco"]
[Date "2019.10.06"]
[Round "3"]
[White "Fecker, Noah"]
[Black "Tocco, Paolo"]
[Result "1-0"]
[ECO "B00"]
[WhiteElo "2240"]
[BlackElo "2079"]
[Annotator "ChessBase"]
[PlyCount "93"]
[EventDate "2019.10.04"]
[EventType "swiss"]
[EventCountry "ITA"]
[SourceTitle "playchess.com"]
[Source "ChessBase"]
[SourceQuality "1"]
[TimeControl "40/5400+30:1800+30"]

1. e4 {[%emt 0:00:30]} b6 {[%emt 0:00:30]} 2. d4 {[%emt 0:00:00]} Bb7 {[%emt 0:00:00]} 3. Bd3 {[%emt 0:00:00]} e6 {[%emt 0:00:00]} 4. Nf3 {[%emt 0:01:30]} c5 5. c3 {[%emt 0:00:30]} Nf6 {[%emt 0:03:00]} 6. Qe2 {[%emt 0:01:30]} d5 {[%emt 0:00:30]} 7. e5 {[%emt 0:09:30]} Nfd7 {[%emt 0:04:30]} 8. O-O {[%emt 0:00:00]} Be7 {[%emt 0:00:30]} 9. a3 {[%emt 0:03:00]} a5 {[%emt 0:06:30]} 10. Rd1 Nc6 {[%emt 0:18:30]} 11. Nbd2 {[%emt 0:17:00]} g5 {[%emt 0:15:30]} 12. h3 {[%emt 0:05:30]} h5 {[%emt 0:00:30]} 13. g4 {[%emt 0:01:30]} hxg4 {[%emt 0:00:00]} 14. hxg4 {[%emt 0:00:30]} c4 {[%emt 0:10:00]} 15. Bc2 {[%emt 0:03:30]} Qc7 {[%emt 0:00:00]} 16. Nf1 {[%emt 0:01:30]} O-O-O {[%emt 0:00:00]} 17. Ng3 {[%emt 0:14:30]} Rdg8 {[%emt 0:00:30]} 18. Kg2 {[%emt 0:00:00]} Kb8 {[%emt 0:00:30]} 19. Bd2 {[%emt 0:00:00]} Nf8 {[%emt 0:10:30]} 20. Rh1 {[%emt 0:06:30]} Rxh1 {[%emt 0:00:00]} 21. Rxh1 {[%emt 0:00:30]} f6 {[%emt 0:02:00]} 22. exf6 {[%emt 0:03:30]} Bxf6 {[%emt 0:00:30]} 23. Nh5 {[%emt 0:00:30]} Be7 {[%emt 0:00:00]} 24. Re1 b5 {[%emt 0:08:07]} 25. Qd1 {[%emt 0:06:00]} Ka8 {[%emt 0:01:41]} 26. Ne5 {[%emt 0:06:48]} Nxe5 {[%emt 0:09:19]} 27. Rxe5 {[%emt 0:15:30]} Bd6 {[%emt 0:06:41]} 28. Rxg5 {[%emt 0:00:00]} Rxg5 {[%emt 0:00:00]} 29. Bxg5 {[%emt 0:00:00]} e5 {[%emt 0:00:11]} 30. Bf5 {[%emt 0:02:05]} exd4 {[%emt 0:01:54]} 31. cxd4 {[%emt 0:00:00]} Nd7 {[%emt 0:00:00]} 32. Qe1 {[%emt 0:00:00]} b4 {[%emt 0:02:10]} 33. Qe8+ {[%emt 0:02:17]} Nb8 {[%emt 0:00:07]} 34. axb4 {[%emt 0:00:00]} axb4 {[%emt 0:00:00]} 35. Nf6 {[%emt 0:00:00]} Bc6 {[%emt 0:00:39]} 36. Qe3 {[%emt 0:01:16]} Kb7 {[%emt 0:00:37]} 37. Be6 {[%emt 0:00:00]} Qa5 {[%emt 0:00:00]} 38. Qc1 {[%emt 0:00:00]} Na6 {[%emt 0:01:14]} 39. Bd2 {[%emt 0:01:21]} Nc7 {[%emt 0:00:07]} 40. Bf7 {[%emt 0:00:00]} Nb5 41. Bxd5 {[%emt 0:06:43]} c3 {[%emt 0:02:43]} 42. Bxc6+ {[%emt 0:02:30]} Kxc6 43. Ne4 {[%emt 0:02:30]} Kd5 {[%emt 0:02:00]} 44. bxc3 {[%emt 0:00:00]} Kxe4 {[%emt 0:02:30]} 45. Qc2+ {[%emt 0:04:00]} Kd5 {[%emt 0:00:00]} 46. c4+ {[%emt 0:00:30]} Kxd4 {[%emt 0:01:00]} 47. Be3+ {[%emt 0:00:00]} 1-0